bitfinex/quotes_ETHUSD_20260121
["timestamp","ask_amount","ask_price","bid_price","bid_amount"]
[1768963100213,0.001,2960.9,2960.4,0.993612]
[1768963100414,3.37836966,2960.9,2960.4,0.993612]
[1768963100723,0.001,2960.9,2960.4,0.993612]
[1768963101441,0.001,2960.9,2960.4,1.01898934]
[1768963102303,0.001,2960.9,2960.6,0.993612]
[1768963102535,0.001,2960.9,2960.7,0.993612]
[1768963102739,0.001,2961.4,2960.8,0.993612]
[1768963103248,0.001,2960.9,2960.8,0.993612]
[1768963103733,0.558,2961.5,2960.7,0.993612]
[1768963104126,0.002,2961.6,2960.7,0.993612]
[1768963104427,0.002,2961.4,2960.8,0.557]
[1768963104627,0.002,2961.4,2960.9,0.993612]
[1768963104824,0.002,2961.1,2960.6,0.555]
[1768963105027,0.002,2960.8,2960.3,1.548612]
[1768963105243,0.002,2960.8,2960.4,0.993612]
[1768963105740,0.49368923,2961.0,2960.4,0.993612]
[1768963105938,3.37678125,2961.4,2960.4,0.993612]
[1768963106108,0.002,2961.3,2960.4,0.993612]
[1768963106308,0.002,2961.2,2960.5,0.993612]
[1768963107439,4.93489232,2961.0,2960.4,0.557]
[1768963107609,4.93489232,2961.0,2960.5,0.993612]
[1768963107933,0.002,2961.0,2960.5,0.993612]
[1768963108140,0.34413843,2961.0,2960.5,0.993612]
[1768963109150,0.34213843,2961.0,2960.5,0.993612]
[1768963109346,3.277228,2961.1,2960.5,0.993612]
[1768963109548,0.002,2961.1,2960.5,0.993612]
[1768963110148,0.04221261,2961.2,2960.5,0.993612]
[1768963110349,0.002,2960.9,2960.5,0.555]
[1768963110531,0.49568923,2960.8,2960.5,0.555]
[1768963110849,0.002,2960.8,2960.5,0.555]
[1768963112320,0.002,2960.8,2960.4,0.555]
[1768963112734,0.002,2960.8,2960.4,1.11]
[1768963113024,0.002,2960.8,2960.4,2.103612]
[1768963113227,0.002,2960.9,2960.4,2.103612]
[1768963114661,0.002,2960.9,2960.5,0.993612]
[1768963114859,0.002,2960.9,2960.4,1.11]
[1768963115161,0.002,2960.9,2960.6,0.002]
[1768963115333,1.16913815,2960.8,2960.2,0.70212474]
[1768963115659,1.16913815,2960.8,2960.4,0.002]
[1768963115857,1.16913815,2960.8,2960.3,0.993612]
[1768963116069,1.16913815,2960.8,2960.2,0.70212474]
[1768963116559,3.37757962,2960.7,2960.2,0.70212474]
[1768963116786,4.17421387,2960.7,2960.2,0.70212474]
[1768963117542,4.17421387,2960.7,2960.2,1.25712474]
[1768963117764,0.79663425,2960.7,2960.2,1.25712474]
[1768963118277,0.79663425,2960.7,2960.2,2.25073674]
[1768963118859,4.17423029,2960.7,2960.2,2.25073674]
[1768963119060,0.79663425,2960.7,2960.2,2.25073674]
[1768963120152,4.17425058,2960.7,2960.2,2.25073674]
[1768963120469,0.5385607,2960.6,2960.2,2.80573674]
[1768963121476,0.557,2960.9,2960.3,0.993612]
[1768963122049,5.61044567,2961.3,2960.3,0.993612]
[1768963122054,3.37717769,2961.1,2960.3,0.993612]
[1768963122250,2.083939,2961.0,2960.3,0.993612]
[1768963122748,2.083939,2961.0,2960.4,0.993612]
[1768963122980,0.88803437,2961.0,2960.4,0.993612]
[1768963124001,2.083239,2961.0,2960.4,0.993612]
[1768963124320,2.083239,2961.1,2960.4,0.993612]
[1768963124491,4.05250338,2961.3,2960.6,0.993612]
[1768963124673,3.37695003,2961.3,2960.6,0.993612]
[1768963125401,3.37695003,2961.3,2960.7,0.91679539]
[1768963126306,0.04221119,2961.3,2960.7,0.91679539]
[1768963126809,0.04220976,2961.4,2960.7,0.91679539]
[1768963127006,0.67955837,2961.3,2960.7,0.91679539]
[1768963127686,0.001,2960.9,2960.7,0.91679539]
[1768963127888,0.001,2960.9,2960.8,0.91679539]
[1768963128930,5.49189232,2961.6,2960.8,0.91679539]
[1768963129097,2.134821,2961.5,2960.9,0.91679539]
[1768963129295,0.55028923,2961.5,2960.9,0.91679539]
[1768963129929,0.001,2961.3,2960.7,1.42179539]
[1768963130108,0.001,2961.3,2960.8,0.91679539]
[1768963130451,0.001,2961.3,2960.7,1.97679539]
[1768963130727,0.54928923,2961.5,2960.8,0.91679539]
[1768963131037,0.64742792,2961.4,2960.8,0.91679539]
[1768963131222,0.001,2961.4,2960.8,0.91679539]
[1768963132804,0.04320976,2961.4,2960.9,0.91679539]
[1768963133005,0.31283136,2961.3,2960.8,0.555]
[1768963133224,0.31283136,2961.3,2960.8,1.47179539]
[1768963134038,0.04221261,2961.2,2960.8,1.47179539]
[1768963134224,0.31283136,2961.3,2960.8,1.47179539]
[1768963134736,3.68973078,2961.3,2960.8,1.47179539]
[1768963134934,3.73194197,2961.3,2960.8,1.47179539]
[1768963135413,0.31283136,2961.3,2960.8,1.47179539]
[1768963135620,3.68978213,2961.3,2960.9,0.91679539]
[1768963135829,0.7066612,2961.2,2960.9,0.91679539]
[1768963136148,0.04221404,2961.1,2960.8,1.11]
[1768963136347,0.04221404,2961.1,2960.8,1.39781587]
[1768963136646,0.7066612,2961.2,2960.8,1.39781587]
[1768963137041,4.08370699,2961.2,2960.8,1.39781587]
[1768963137251,0.96771075,2961.0,2960.7,1.06]
[1768963138041,1.80555606,2961.1,2960.7,2.53179539]
[1768963139156,0.83784531,2961.1,2960.7,2.53179539]
[1768963139376,4.34472151,2961.2,2960.8,0.91679539]
[1768963139549,4.34572151,2961.2,2960.8,0.91679539]
[1768963140050,4.34572151,2961.2,2960.8,0.07045104]
[1768963140252,0.96871075,2961.2,2960.8,0.555]
[1768963140456,4.34572554,2961.2,2960.8,1.47179539]
[1768963140755,0.96871075,2961.2,2960.8,1.47179539]
[1768963142757,0.96871075,2961.2,2960.8,2.02679539]
[1768963142967,4.34573547,2961.2,2960.8,2.02679539]
[1768963143168,5.11798756,2961.2,2960.8,2.02679539]
[1768963143678,1.74096284,2961.2,2960.8,2.02679539]
[1768963144880,0.001,2961.2,2960.8,2.02679539]
[1768963145083,0.001,2961.2,2960.9,0.91679539]
[1768963145782,0.001,2961.2,2960.9,0.15903896]
[1768963145948,0.001,2961.2,2960.8,2.58179539]
[1768963146848,0.99157192,2961.2,2960.8,1.665]
[1768963147775,0.99157192,2961.2,2960.8,2.58179539]
[1768963147972,0.001,2961.2,2960.8,3.13679539]
[1768963149973,0.99157192,2961.2,2960.8,3.13679539]
[1768963150372,0.99157192,2961.2,2960.8,3.69179539]
[1768963150577,0.99157192,2961.2,2960.8,2.775]
[1768963150772,0.99157192,2961.2,2960.8,1e-08]
[1768963151777,0.001,2961.0,2960.8,1e-08]
[1768963153085,0.001,2961.0,2960.8,1.4717954]
[1768963153484,0.001,2961.0,2960.9,0.91679539]
[1768963153646,4.36714239,2961.6,2960.9,0.91679539]
[1768963154059,0.99057192,2961.5,2960.9,0.91679539]
[1768963154260,0.99057192,2961.5,2960.9,0.557]
[1768963154454,0.99057192,2961.5,2961.0,0.91679539]
[1768963154666,0.99057192,2961.6,2961.0,0.91679539]
[1768963154866,0.558,2961.7,2961.0,0.91679539]
[1768963155074,0.99057192,2961.6,2961.0,0.91679539]
[1768963155376,0.99057192,2961.6,2961.0,1.47179539]
[1768963156375,1.03317757,2961.5,2961.0,0.555]
[1768963158091,1.03317757,2961.5,2961.0,1.11]
[1768963158489,3.41888016,2961.5,2961.0,1.11]
[1768963158698,0.99096923,2961.4,2961.0,1.11]
[1768963159596,0.99096923,2961.3,2961.0,1.11]
[1768963159760,0.99096923,2961.3,2960.8,0.55500001]
[1768963160572,1.03318042,2961.3,2960.8,0.55500001]
[1768963160786,1.03318042,2961.3,2960.8,1.11000001]
[1768963160986,0.99096923,2961.1,2960.8,1.11000001]
[1768963162201,0.99096923,2961.3,2960.8,2.02103197]
[1768963162385,0.99096923,2961.3,2960.9,0.91103196]
[1768963162569,0.99096923,2961.3,2960.8,1.11000001]
[1768963162966,0.99096923,2961.3,2960.8,2.02103197]
[1768963163171,0.99096923,2961.3,2960.8,2.57603197]
[1768963163607,0.001,2961.0,2960.8,2.57603197]
[1768963165583,0.001,2961.0,2960.8,3.13103197]
[1768963166198,0.001,2961.0,2960.9,0.91103196]
[1768963167916,0.001,2961.0,2960.9,1.46603196]
[1768963168619,0.001,2961.0,2960.9,0.555]
[1768963170390,0.001,2961.0,2960.9,1.11]
[1768963170588,0.99196923,2961.0,2960.7,1.615]
[1768963170788,0.99096923,2960.9,2960.7,1.06274034]
[1768963170989,1.42789055,2960.9,2960.7,0.56829507]
[1768963171509,1.42789055,2960.9,2960.7,0.50904422]
[1768963171693,1.42789055,2960.9,2960.6,0.555]
[1768963172400,1.42789055,2960.9,2960.6,0.45610669]
[1768963172586,0.99096923,2960.8,2960.5,0.557]
[1768963172784,0.99096923,2960.8,2960.5,1.112]
[1768963174707,0.99196923,2961.0,2960.5,1.112]
[1768963174903,0.99196923,2961.0,2960.6,0.91103196]
[1768963175306,0.001,2961.0,2960.7,0.002]
[1768963178157,0.001,2961.0,2960.7,0.93840511]
[1768963178446,0.001,2961.0,2960.7,1.72877247]
[1768963178643,0.001,2961.0,2960.7,1.46803196]
[1768963179151,0.99196923,2961.0,2960.7,0.557]
[1768963179645,0.99196923,2961.0,2960.7,0.38841268]
[1768963179847,0.99196923,2961.0,2960.7,1e-08]
[1768963180844,0.99196923,2961.0,2960.6,1e-08]
[1768963181019,0.99096923,2960.9,2960.6,1e-08]
[1768963183157,0.001,2961.0,2960.6,1e-08]
[1768963183158,0.99196923,2961.0,2960.6,1e-08]
[1768963183362,0.99196923,2961.0,2960.6,0.55500001]
[1768963184346,0.99196923,2961.0,2960.6,1.46603197]
[1768963185748,0.99196923,2961.0,2960.6,2.02103197]
[1768963188064,0.99196923,2961.0,2960.6,2.57603197]
[1768963188562,0.001,2960.8,2960.6,2.57603197]
[1768963188741,0.001,2960.8,2960.7,0.96774479]
[1768963189543,0.001,2960.8,2960.6,2.6327448]
[1768963190456,0.001,2960.8,2960.6,3.1877448]
[1768963193265,0.001,2960.8,2960.6,3.7427448]
[1768963195766,0.001,2960.8,2960.6,4.2977448]
[1768963197752,0.001,2960.8,2960.6,3.33000001]
[1768963197948,0.001,2960.8,2960.7,0.96774479]
[1768963200556,0.001,2960.8,2960.7,1.52274479]
[1768963201379,0.001,2961.7,2960.8,0.96774479]
[1768963201555,0.001,2961.7,2961.2,0.96774479]
[1768963201759,0.001,2961.7,2961.4,0.96774479]
[1768963202969,0.001,2961.7,2961.4,1.52274479]
[1768963203295,0.001,2961.7,2961.4,0.555]
[1768963204606,0.001,2961.7,2961.5,0.96774479]
[1768963204776,0.001,2962.2,2961.6,0.96774479]
[1768963204971,0.001,2962.2,2961.8,0.96774479]
[1768963205298,5.11131741,2963.1,2961.8,0.96774479]
[1768963205299,0.9894651,2962.8,2961.8,0.96774479]
[1768963205499,0.9894651,2962.8,2961.9,0.96774479]
[1768963205799,0.9894651,2962.8,2962.0,4.93512347]
[1768963206014,0.9894651,2963.5,2962.4,0.96774479]
[1768963206304,1.03164637,2963.4,2962.7,0.96774479]
[1768963206685,0.9894651,2963.4,2962.7,0.96774479]
[1768963206870,0.001,2963.6,2962.7,0.96774479]
[1768963207411,0.9894651,2964.6,2963.4,0.96774479]
[1768963207593,0.9894651,2964.6,2963.6,0.96774479]
[1768963207902,0.9894651,2964.6,2963.7,0.96774479]
[1768963209492,3.37314836,2964.6,2963.7,0.96774479]
[1768963209694,0.9894651,2964.5,2963.7,0.96774479]
[1768963209915,0.43626135,2964.4,2963.7,0.96774479]
[1768963210111,0.9894651,2964.7,2963.7,0.96774479]
[1768963210576,0.9894651,2964.7,2963.8,0.96774479]
[1768963210781,0.9894651,2964.7,2964.0,0.96774479]
[1768963211192,0.9894651,2964.9,2964.0,0.96774479]
[1768963211786,1.03162503,2964.9,2964.0,0.96774479]
[1768963212013,0.9894651,2964.7,2964.0,0.96774479]
[1768963212817,0.9894651,2964.7,2964.1,1.52474479]
[1768963213393,0.9894651,2964.7,2964.2,0.96774479]
[1768963213650,0.9894651,2965.2,2964.3,0.96774479]
[1768963213798,0.9894651,2965.5,2964.3,0.96774479]
[1768963214423,1.0316165,2965.5,2964.3,0.96774479]
[1768963214606,0.9894651,2965.5,2964.3,0.96774479]
[1768963215136,0.99568978,2965.3,2964.3,0.96774479]
[1768963215631,4.36814357,2965.2,2964.4,0.9355238]
[1768963215833,5.14639785,2965.2,2964.4,0.9355238]
[1768963216040,0.99568978,2965.1,2964.4,0.9355238]
[1768963216808,4.15070807,2965.2,2963.6,0.555]
[1768963216809,4.93512347,2964.9,2963.6,0.555]
[1768963217010,4.93512347,2964.9,2963.8,0.556]
[1768963217011,6.37995935,2964.8,2963.8,0.556]
[1768963217193,0.99568978,2964.7,2963.8,0.556]
[1768963217395,3.37313634,2964.6,2963.8,0.556]
[1768963217747,1.33300341,2964.5,2963.8,0.556]
[1768963218028,1.33300341,2964.5,2963.8,1.111]
[1768963218397,1.33300341,2964.5,2963.8,0.555]
[1768963218627,1.33300341,2964.5,2963.9,0.556]
[1768963218823,1.33300341,2964.5,2963.9,1.4915238]
[1768963219417,0.33731363,2964.5,2963.9,1.4915238]
[1768963219611,0.33731363,2964.5,2964.0,0.9355238]
[1768963220127,0.99568978,2964.4,2963.8,1.4905238]
[1768963220436,0.99568978,2964.4,2963.9,1.111]
[1768963220609,1.43258435,2964.4,2963.9,0.555]
[1768963220928,1.43258435,2964.4,2963.9,2.0465238]
[1768963221120,0.99568978,2964.6,2964.0,0.9355238]
[1768963222001,0.99568978,2964.5,2964.0,0.9355238]
[1768963223099,0.99568978,2964.5,2964.0,1.4905238]
[1768963223704,0.99568978,2964.7,2964.1,0.96080009]
[1768963223925,0.001,2964.3,2964.1,0.9355238]
[1768963226434,0.001,2964.3,2964.1,1.4905238]
[1768963226833,0.001,2964.3,2964.1,0.555]
[1768963227550,0.001,2964.3,2964.2,0.9355238]
[1768963227711,0.99568978,2964.8,2964.2,0.9355238]
[1768963228040,0.99568978,2965.1,2964.4,0.9355238]
[1768963230640,0.99568978,2965.4,2964.8,1.4915238]
[1768963230939,0.99568978,2965.4,2964.9,0.9355238]
[1768963231240,0.99568978,2965.4,2964.9,1.4905238]
[1768963231441,0.99568978,2965.6,2965.0,0.9355238]
[1768963231643,0.99568978,2965.8,2965.2,0.9355238]
[1768963231852,0.001,2966.0,2965.4,0.9355238]
[1768963232347,0.99568978,2966.5,2965.6,0.9355238]
[1768963232537,0.99568978,2966.5,2965.8,0.9355238]
[1768963232736,0.99568978,2966.7,2965.8,0.9355238]
[1768963232937,1.43231299,2966.7,2965.8,0.9355238]
[1768963233114,0.99568978,2967.4,2965.8,0.9355238]
[1768963233332,0.99568978,2967.0,2965.8,0.9355238]
[1768963233777,0.99568978,2967.0,2965.9,0.9355238]
[1768963234431,0.99568978,2967.4,2965.9,0.9355238]
[1768963234631,0.99568978,2967.4,2965.8,0.555]
[1768963234632,0.99568978,2967.2,2966.2,0.9355238]
[1768963234858,0.99568978,2967.2,2966.4,0.9355238]
[1768963235160,0.99568978,2967.2,2966.5,0.556]
[1768963235366,0.99568978,2967.2,2966.5,1.4915238]
[1768963236033,0.99568978,2967.2,2966.5,2.0465238]
[1768963236234,1.43227151,2967.1,2966.5,2.0465238]
[1768963236442,0.43658173,2967.1,2966.6,0.9355238]
[1768963236750,0.04211874,2967.8,2966.5,1.111]
[1768963236751,0.99568978,2967.2,2966.5,1.111]
[1768963236951,0.001,2966.8,2966.5,1.111]
[1768963237145,0.001,2966.8,2966.5,2.0465238]
[1768963237442,0.001,2966.8,2966.5,1.111]
[1768963238271,0.001,2966.8,2966.5,2.0465238]
[1768963238440,0.001,2966.8,2966.6,0.9355238]
[1768963239861,0.001,2966.8,2966.5,1.11]
[1768963240843,0.001,2966.8,2966.5,2.0455238]
[1768963241061,0.001,2966.8,2966.5,2.6005238]
[1768963243447,0.001,2966.8,2966.6,0.9355238]
[1768963245568,0.556,2967.4,2966.7,0.99937925]
[1768963245569,0.95204135,2967.4,2966.7,0.99937925]
[1768963245946,0.95204135,2967.4,2966.8,0.99937925]
[1768963246274,0.95204135,2967.4,2966.8,1.0245758]
[1768963247185,0.95204135,2967.7,2967.0,0.99937925]
[1768963247388,0.95204135,2968.0,2967.0,0.99937925]
[1768963247546,0.95204135,2968.0,2967.0,1.02456913]
[1768963247744,0.95304135,2968.2,2967.0,1.02456913]
[1768963248248,0.95204135,2968.1,2967.0,1.02456913]
[1768963248459,0.95204135,2968.1,2967.1,0.99937925]
[1768963249490,0.95204135,2968.1,2967.3,0.99937925]
[1768963250798,0.001,2968.2,2967.5,0.99937925]
[1768963251661,0.001,2968.2,2967.7,0.99937925]
[1768963253371,0.001,2968.2,2967.8,0.99937925]
[1768963254498,0.001,2968.2,2967.7,0.555]
[1768963254499,0.7852121,2968.9,2968.0,0.99937925]
[1768963255090,0.7852121,2968.9,2968.2,0.99937925]
[1768963255270,0.7852121,2968.9,2968.3,1.59008566]
[1768963255896,0.7852121,2968.9,2968.3,2.14508566]
[1768963257258,0.7852121,2968.9,2968.3,1.55437925]
[1768963258261,0.7852121,2968.9,2968.3,2.10937925]
[1768963258588,0.95204135,2968.8,2968.3,1.11]
[1768963258792,0.95204135,2968.8,2968.3,1e-08]
[1768963259873,0.95204135,2968.6,2968.3,1e-08]
[1768963260271,0.99415015,2968.5,2968.3,1e-08]
[1768963260808,0.99415015,2968.5,2967.7,1e-08]
[1768963260965,0.95204135,2968.1,2967.7,1e-08]
[1768963261775,0.95204135,2968.0,2967.7,1e-08]
[1768963262168,3.36896433,2968.3,2967.7,1e-08]
[1768963262169,0.95204135,2968.2,2967.7,1e-08]
[1768963262374,0.95204135,2968.5,2967.7,0.99937926]
[1768963262766,0.95204135,2968.5,2967.9,0.99937925]
[1768963263561,0.95304135,2968.7,2968.0,0.02516448]
[1768963263806,0.95304135,2968.7,2967.7,0.55500001]
[1768963263807,0.95304135,2968.7,2967.8,0.02516448]
[1768963264012,0.95204135,2968.6,2967.7,0.55500001]
[1768963264302,0.99414874,2968.6,2967.7,0.55500001]
[1768963265294,0.99414874,2968.6,2967.7,1.55437926]
[1768963265491,0.95204135,2968.5,2967.8,0.99937925]
[1768963266295,0.95204135,2968.4,2967.8,0.99937925]
[1768963266599,0.95204135,2968.3,2967.7,1.11000001]
[1768963266912,0.95204135,2968.3,2967.2,0.99937925]
[1768963267133,0.95204135,2968.2,2967.2,0.99937925]
[1768963267403,0.95204135,2968.2,2967.1,0.555]
[1768963267604,0.555,2968.3,2967.1,0.555]
[1768963267605,0.95204135,2968.0,2967.1,0.555]
[1768963268105,0.95204135,2967.9,2967.1,1.11]
[1768963268283,0.95204135,2967.8,2967.2,0.99937925]
[1768963269410,0.95204135,2968.0,2967.2,0.99937925]
[1768963270215,0.95204135,2967.9,2967.2,0.99937925]
[1768963270417,0.95204135,2967.9,2967.2,1.55437925]
[1768963271700,0.95204135,2967.9,2967.2,0.555]
[1768963271903,0.95204135,2967.8,2967.2,0.555]
[1768963272100,0.95204135,2967.8,2967.4,0.002]
[1768963272311,0.95204135,2967.7,2967.2,0.555]
[1768963272898,0.95204135,2967.7,2967.2,0.88904578]
[1768963273107,0.95204135,2967.7,2967.2,0.49978768]
[1768963273385,0.95204135,2967.6,2967.2,0.49978768]
[1768963273716,0.95204135,2967.6,2967.2,0.17096147]
[1768963273927,0.95204135,2967.6,2967.1,1.112]
[1768963274823,0.95204135,2967.6,2966.7,0.555]
[1768963274824,1.63947228,2967.0,2966.7,0.555]
[1768963275123,1.112,2967.0,2966.8,0.91335714]
[1768963276317,1.112,2967.0,2966.7,1.11]
[1768963276521,1.112,2967.0,2966.7,0.53415519]
[1768963277793,1.112,2967.0,2966.7,1.08915519]
[1768963279194,0.52747228,2966.9,2966.7,0.924199]
[1768963279394,0.52747228,2966.9,2966.5,2.11639524]
[1768963280319,0.555,2967.3,2966.6,0.91335714]
[1768963280494,0.52747228,2967.4,2966.6,4e-08]
[1768963281523,0.97816503,2967.3,2966.6,4e-08]
[1768963282794,0.97816503,2967.3,2966.6,0.555]
[1768963283000,0.97816503,2967.3,2966.6,0.29853036]
[1768963283328,0.97816503,2967.1,2966.6,0.29853036]
[1768963284116,0.97816503,2967.1,2966.8,0.002]
[1768963284413,4.34849084,2967.1,2966.6,0.29853036]
[1768963284611,0.97816503,2967.0,2966.6,0.29853036]
[1768963284996,0.97816503,2967.0,2966.6,2e-08]
[1768963285192,0.97816503,2967.0,2966.6,0.55500002]
[1768963285430,0.97816503,2967.0,2966.6,0.45138838]
[1768963285597,0.97816503,2967.0,2966.6,2e-08]
[1768963287121,0.97816503,2966.9,2966.6,2e-08]
[1768963287811,0.97816503,2966.8,2966.5,1e-08]
[1768963288011,0.97816503,2966.7,2966.5,1e-08]
[1768963289705,0.97816503,2966.5,2966.0,0.002]
[1768963289911,0.97816503,2966.3,2965.8,0.555]
[1768963290342,0.97816503,2966.3,2965.8,1.11]
[1768963291727,0.97816503,2966.3,2965.8,2.02335714]
[1768963292830,0.97816503,2966.3,2965.8,2.57835714]
[1768963293002,4.3494367,2966.3,2965.8,2.57835714]
[1768963293201,0.97816503,2966.2,2965.8,1.45771971]
[1768963293398,0.97816503,2966.2,2965.8,1.00977549]
[1768963294040,0.97816503,2966.3,2965.9,0.91335714]
[1768963294335,0.97816503,2966.3,2965.8,1.92313263]
[1768963294927,0.97816503,2966.2,2965.8,1.92313263]
[1768963295136,0.97816503,2966.2,2965.8,1.00977549]
[1768963295434,0.97816503,2966.2,2965.8,1.0465709]
[1768963296420,0.97816503,2966.5,2965.9,0.91335714]
[1768963296943,0.97816503,2966.5,2966.0,0.002]
[1768963297819,0.97816503,2966.5,2966.0,0.557]
[1768963300324,0.97816503,2966.5,2966.0,1.112]
[1768963302055,0.97816503,2966.5,2965.3,0.02521705]
[1768963302056,2.20116574,2965.2,2965.0,1.11800952]
[1768963302206,0.97816503,2965.5,2965.0,0.91335714]
[1768963302207,0.81144454,2965.5,2965.0,0.91335714]
[1768963302534,0.555,2965.9,2965.0,0.91335714]
[1768963302535,0.97816503,2965.8,2965.0,0.91335714]
[1768963303056,0.97816503,2966.0,2965.1,0.91335714]
[1768963303348,0.97816503,2966.3,2965.1,0.93859328]
[1768963303510,0.72787183,2966.3,2965.1,0.93859328]
[1768963303713,0.97816503,2966.4,2965.1,0.93859328]
[1768963305319,0.97816503,2966.4,2965.2,0.98524041]
[1768963305654,0.97816503,2966.4,2965.4,0.98524041]
[1768963305655,0.96254823,2966.3,2965.4,0.98524041]
[1768963305817,0.96254823,2966.3,2965.6,0.98524041]
[1768963306349,0.96254823,2966.5,2965.6,0.98524041]
[1768963306518,0.96254823,2966.7,2965.8,0.98524041]
[1768963306714,0.96254823,2966.7,2965.5,0.555]
[1768963306715,0.96254823,2966.7,2966.0,0.98524041]
[1768963307021,2.855483,2966.6,2966.0,0.98524041]
[1768963307365,0.96254823,2966.5,2966.0,0.98524041]
[1768963307667,0.96254823,2966.4,2966.0,0.98524041]
[1768963307861,0.96254823,2966.4,2966.0,1.54024041]
[1768963309754,0.001,2966.3,2966.0,1.54024041]
[1768963310325,0.001,2966.3,2966.0,0.46797724]
[1768963310537,0.001,2966.3,2966.0,0.36653646]
[1768963310756,0.001,2966.3,2966.0,2e-08]
[1768963312257,0.001,2966.3,2966.1,0.98524041]
[1768963312468,0.001,2966.3,2966.2,0.97708095]
[1768963312969,0.001,2966.3,2966.0,0.55500002]
[1768963313152,0.001,2966.3,2966.0,1.54024043]
[1768963313957,0.001,2966.3,2966.0,0.55500002]
[1768963314169,0.001,2967.1,2966.2,0.98524041]
[1768963314170,0.96254823,2967.0,2966.2,0.98524041]
[1768963314330,1.39593675,2967.0,2966.2,0.98524041]
[1768963314534,0.96254823,2967.0,2966.2,0.98524041]
[1768963314954,0.96254823,2967.0,2966.2,0.555]
[1768963315263,0.96254823,2967.0,2966.3,0.98524041]
[1768963315770,0.001,2967.1,2966.3,0.98524041]
[1768963317467,0.001,2967.1,2966.4,0.98524041]
[1768963318943,0.96354823,2967.1,2966.4,0.98524041]
[1768963319132,0.96354823,2967.1,2966.3,0.555]
[1768963319465,1.0056769,2967.1,2966.4,0.98524041]
[1768963319679,1.5557337,2967.1,2966.4,0.98524041]
[1768963319827,0.96354823,2967.1,2966.5,0.98524041]
[1768963322085,0.96254823,2967.0,2966.4,0.555]
[1768963322285,0.96254823,2966.8,2966.4,1.11]
[1768963322455,0.96254823,2966.8,2966.4,0.41294334]
[1768963322761,0.96254823,2966.8,2966.4,1e-08]
[1768963323342,0.96254823,2966.6,2966.4,1e-08]
[1768963324491,0.96254823,2966.6,2965.9,0.555]
[1768963324492,0.96254823,2966.6,2965.2,0.6755318]
[1768963324691,0.96254823,2966.6,2965.1,3.96511122]
[1768963324692,0.96254823,2966.3,2965.3,1.06170211]
[1768963324992,4.33376665,2966.3,2965.3,1.06170211]
[1768963325163,0.96254823,2966.2,2965.3,1.06170211]
[1768963325363,0.96254823,2966.1,2965.3,1.06170211]
[1768963326166,0.96254823,2966.1,2965.4,0.50670211]
[1768963326492,0.96254823,2966.3,2965.4,0.50670211]
[1768963327066,0.96254823,2966.3,2965.5,0.50670211]
[1768963327263,0.96254823,2966.2,2965.5,0.50670211]
[1768963327964,0.96254823,2966.2,2965.4,0.555]
[1768963328292,0.96254823,2966.2,2965.4,1.11]
[1768963329172,0.96254823,2966.0,2965.4,1.11]
[1768963329400,0.96254823,2965.9,2965.4,1.11]
[1768963329708,0.96254823,2965.9,2965.4,1.665]
[1768963331081,0.96254823,2965.9,2965.4,1.11]
[1768963331082,0.96254823,2965.8,2965.4,1.11]
[1768963331425,0.96254823,2965.8,2965.1,1.11]
[1768963331585,0.96254823,2965.7,2965.1,1.11]
[1768963332093,0.96254823,2965.7,2965.1,1.665]
[1768963332880,0.96254823,2965.7,2965.0,1e-08]
[1768963333394,0.96254823,2965.5,2965.0,1e-08]
[1768963334420,0.96254823,2965.5,2965.0,0.55500001]
[1768963334619,0.96254823,2965.4,2965.0,0.51648426]
[1768963334833,0.96254823,2965.4,2965.0,1e-08]
[1768963336212,3.92693271,2965.7,2965.0,0.50670212]
[1768963336213,0.97645214,2965.6,2965.0,0.50670212]
[1768963336529,0.97645214,2965.9,2965.0,0.50670212]
[1768963337026,0.97645214,2965.9,2965.1,0.50670211]
[1768963337318,0.97645214,2965.8,2965.1,0.50670211]
[1768963338002,0.97645214,2965.8,2965.0,0.55500001]
[1768963338003,0.97645214,2965.6,2965.0,0.55500001]
[1768963338828,0.97645214,2965.6,2965.0,1.06170212]
[1768963339241,0.97645214,2965.6,2965.0,1.61670212]
[1768963340239,1.47107206,2965.9,2965.1,0.50670211]
[1768963340409,0.97645214,2965.9,2965.1,0.50670211]
[1768963341640,0.97645214,2965.9,2965.2,0.50670211]
[1768963341849,0.97645214,2965.9,2965.1,0.555]
[1768963342011,1.01859928,2965.8,2965.1,0.555]
[1768963342215,0.97645214,2965.5,2965.0,1.11000001]
[1768963343937,0.97645214,2965.5,2965.0,1.66500001]
[1768963346410,0.97645214,2965.5,2965.0,2.22000001]
[1768963346610,0.97645214,2965.2,2965.0,2.22000001]
[1768963348121,0.97645214,2965.2,2965.0,2.77500001]
[1768963348316,0.001,2965.3,2965.0,2.77500001]
[1768963348730,0.97745214,2965.3,2965.0,2.77500001]
[1768963348941,0.97745214,2965.3,2965.0,3.33000001]
[1768963350014,0.97745214,2965.3,2965.0,2.77500001]
[1768963350248,0.97745214,2965.3,2965.0,3.33000001]
[1768963351529,0.97745214,2965.3,2965.0,3.88500001]
[1768963352576,0.97645214,2965.1,2964.8,0.002]
[1768963352733,0.97645214,2965.1,2964.7,0.555]
[1768963354070,0.97645214,2965.1,2964.7,1.11]
[1768963356438,0.97645214,2965.1,2964.7,1.665]
[1768963358151,0.97645214,2965.1,2964.9,0.002]
[1768963358374,0.97645214,2965.1,2964.7,1.665]
[1768963359077,0.97645214,2965.1,2964.7,2.22]
[1768963359678,0.97645214,2965.0,2964.7,2.22]
[1768963360179,0.97645214,2965.0,2964.7,1.665]
[1768963361684,0.97645214,2965.0,2964.7,1.37682132]
[1768963361997,0.97645214,2964.9,2964.6,0.55500001]
[1768963364391,0.97645214,2964.9,2964.6,1.11000001]
[1768963366290,0.90617707,2965.1,2964.7,0.50670211]
[1768963366494,0.90617707,2965.1,2964.6,1.11000001]
[1768963367698,0.90617707,2965.1,2964.6,1.66500001]
[1768963369999,0.90617707,2965.1,2964.6,2.22000001]
[1768963370799,0.90617707,2965.1,2964.8,0.002]
[1768963370970,0.90717707,2964.9,2964.6,2.22000001]
[1768963372499,0.90717707,2964.9,2964.6,2.77500001]
[1768963374915,0.90717707,2964.9,2964.6,3.33000001]
[1768963375906,0.90717707,2964.9,2964.6,1e-08]
[1768963376203,0.90617707,2964.8,2964.6,1e-08]
[1768963376706,0.90617707,2964.8,2964.5,0.002]